[Event "NOR-ch Various 2019"]
[Site "Larvik"]
[Date "2019.07.07"]
[Round "2.23"]
[White "Ihlen, Sivert"]
[Black "Kreken, Eivind Grunt"]
[Result "1-0"]
[ECO "B46"]
[WhiteElo "1580"]
[BlackElo "1842"]
[Annotator "NA"]
[PlyCount "181"]
[EventDate "2019.07.06"]
[EventType "swiss"]
[EventCountry "NOR"]
[SourceTitle "playchess.com"]
[Source "ChessBase"]
[SourceQuality "1"]
[TimeControl "40/5400+30:1800+30"]

1. e4 {[%emt 0:00:00]} c5 {[%emt 0:00:00]} 2. Nf3 {[%emt 0:00:00]} e6 {[%emt 0:00:00]} 3. d4 {[%emt 0:00:00]} cxd4 {[%emt 0:00:05]} 4. Nxd4 {[%emt 0:00:00]} Nc6 {[%emt 0:00:13]} 5. Nc3 {[%emt 0:00:00]} a6 {[%emt 0:00:10]} 6. Nxc6 {[%emt 0:01:05]} bxc6 {[%emt 0:00:13]} 7. e5 {[%emt 0:02:12]} Qa5 {[%emt 0:06:28]} 8. f4 {[%emt 0:12:17]} d6 {[%emt 0:08:44]} 9. exd6 {[%emt 0:06:25]} Qb4 {[%emt 0:00:59]} 10. Be2 {[%emt 0:11:07]} Bxd6 {[%emt 0:02:11]} 11. a3 {[%emt 0:02:00]} Qb8 {[%emt 0:00:33]} 12. O-O {[%emt 0:18:52]} Nf6 {[%emt 0:00:15]} 13. Bf3 {[%emt 0:01:38]} O-O {[%emt 0:02:38]} 14. Ne4 {[%emt 0:01:49]} Nxe4 {[%emt 0:03:39]} 15. Bxe4 {[%emt 0:00:10]} Rd8 {[%emt 0:00:24]} 16. Qh5 {[%emt 0:06:36]} g6 {[%emt 0:03:11]} 17. Qa5 {[%emt 0:02:58]} Bc7 {[%emt 0:01:23]} 18. Qb4 {[%emt 0:00:25]} Bb6+ {[%emt 0:10:52]} 19. Kh1 {[%emt 0:00:47]} c5 {[%emt 0:01:05]} 20. Qb3 {[%emt 0:09:39]} Bb7 {[%emt 0:06:36]} 21. Bxb7 {[%emt 0:01:59]} Qxb7 {[%emt 0:00:10]} 22. Be3 {[%emt 0:00:53]} Qc6 {[%emt 0:04:46]} 23. Rad1 {[%emt 0:02:02]} f6 {[%emt 0:02:55]} 24. Qc4 {[%emt 0:01:14]} Rd5 {[%emt 0:01:56]} 25. b4 {[%emt 0:02:45]} Rad8 {[%emt 0:05:29]} 26. Rxd5 {[%emt 0:00:43]} exd5 {[%emt 0:00:13]} 27. Qxa6 {[%emt 0:01:29]} Ra8 {[%emt 0:01:52]} 28. Qd3 {[%emt 0:00:14]} d4 {[%emt 0:00:20]} 29. Bc1 {[%emt 0:00:40]} c4 {[%emt 0:02:49]} 30. Qf3 {[%emt 0:00:35]} Qxf3 {[%emt 0:00:20]} 31. gxf3 {[%emt 0:04:47]} Re8 {[%emt 0:01:19]} 32. Kg2 {[%emt 0:06:38]} d3 {[%emt 0:03:43]} 33. cxd3 {[%emt 0:00:23]} Re2+ {[%emt 0:00:31]} 34. Kg3 {[%emt 0:01:21]} cxd3 {[%emt 0:00:18]} 35. Rd1 {[%emt 0:00:36]} Rc2 {[%emt 0:02:20]} 36. f5 {[%emt 0:00:33]} g5 {[%emt 0:01:00]} 37. f4 {[%emt 0:00:50]} Rc3 {[%emt 0:03:18]} 38. Bb2 {[%emt 0:01:23]} Rb3 {[%emt 0:09:18]} 39. Bxf6 {[%emt 0:00:10]} d2+ {[%emt 0:00:11]} 40. Kg2 {[%emt 0:00:32]} gxf4 {[%emt 0:01:05]} 41. Rxd2 {[%emt 0:32:01]} f3+ {[%emt 0:30:33]} 42. Kg3 {[%emt 0:00:00]} f2+ {[%emt 0:00:00]} 43. Kg2 {[%emt 0:00:00]} Rb1 {[%emt 0:00:00]} 44. Rxf2 {[%emt 0:00:00]} Bxf2 {[%emt 0:00:00]} 45. Kxf2 {[%emt 0:00:00]} Rb3 {[%emt 0:00:00]} 46. Bd8 {[%emt 0:00:00]} Rxa3 {[%emt 0:00:00]} 47. b5 {[%emt 0:00:00]} Rb3 {[%emt 0:00:00]} 48. b6 {[%emt 0:00:00]} Kf7 {[%emt 0:00:00]} 49. Ke2 {[%emt 0:00:00]} Ke8 {[%emt 0:00:00]} 50. Bc7 {[%emt 0:00:00]} Ke7 {[%emt 0:00:00]} 51. Kd2 {[%emt 0:00:00]} Kf6 {[%emt 0:00:00]} 52. Kc2 {[%emt 0:00:00]} Rb5 {[%emt 0:00:00]} 53. Kc3 {[%emt 0:00:00]} Kxf5 {[%emt 0:00:00]} 54. Kc4 {[%emt 0:00:00]} Rb1 {[%emt 0:00:00]} 55. Kd5 {[%emt 0:00:00]} h5 {[%emt 0:01:49]} 56. Kc6 {[%emt 0:00:00]} Rc1+ {[%emt 0:00:00]} 57. Kb5 {[%emt 0:00:00]} Rb1+ {[%emt 0:00:00]} 58. Kc6 {[%emt 0:00:00]} Rc1+ {[%emt 0:00:00]} 59. Kd7 {[%emt 0:00:00]} Rb1 {[%emt 0:00:00]} 60. Kc8 {[%emt 0:00:00]} h4 {[%emt 0:00:00]} 61. b7 {[%emt 0:00:00]} h3 {[%emt 0:00:00]} 62. b8=Q {[%emt 0:00:10]} Rxb8+ {[%emt 0:00:00]} 63. Bxb8 {[%emt 0:00:00]} Kg4 {[%emt 0:00:00]} 64. Bg3 {[%emt 0:00:00]} Kh5 {[%emt 0:00:00]} 65. Kd7 {[%emt 0:00:00]} Kg4 {[%emt 0:00:00]} 66. Ke6 {[%emt 0:00:00]} Kg5 {[%emt 0:00:00]} 67. Kf7 {[%emt 0:00:00]} Kf5 {[%emt 0:00:00]} 68. Kg7 {[%emt 0:00:00]} Kg5 {[%emt 0:00:00]} 69. Bc7 {[%emt 0:00:00]} Kh5 {[%emt 0:00:00]} 70. Kf6 {[%emt 0:00:00]} Kg4 {[%emt 0:00:00]} 71. Kg6 {[%emt 0:00:00]} Kh4 {[%emt 0:00:00]} 72. Kf5 {[%emt 0:00:00]} Kh5 {[%emt 0:00:00]} 73. Bd8 {[%emt 0:00:00]} Kh6 {[%emt 0:00:00]} 74. Kg4 {[%emt 0:00:00]} Kg6 {[%emt 0:00:00]} 75. Kxh3 {[%emt 0:00:00]} Kh6 {[%emt 0:00:00]} 76. Kg4 {[%emt 0:00:00]} Kg6 {[%emt 0:00:00]} 77. h4 {[%emt 0:00:00]} Kh6 {[%emt 0:00:00]} 78. h5 {[%emt 0:00:00]} Kh7 {[%emt 0:00:00]} 79. Kg5 {[%emt 0:00:00]} Kg7 {[%emt 0:00:00]} 80. Bf6+ {[%emt 0:00:00]} Kh7 {[%emt 0:00:00]} 81. h6 {[%emt 0:00:00]} Kg8 {[%emt 0:00:00]} 82. Kg6 {[%emt 0:00:00]} Kf8 {[%emt 0:00:00]} 83. h7 {[%emt 0:00:00]} Ke8 {[%emt 0:00:00]} 84. h8=Q+ {[%emt 0:00:00]} Kd7 {[%emt 0:00:00]} 85. Qd8+ {[%emt 0:00:00]} Kc6 {[%emt 0:00:00]} 86. Qd4 {[%emt 0:00:17]} Kb7 {[%emt 0:00:00]} 87. Qc5 {[%emt 0:00:15]} Ka8 {[%emt 0:00:00]} 88. Qe7 {[%emt 0:00:13]} Kb8 {[%emt 0:00:00]} 89. Bd4 {[%emt 0:00:26]} Kc8 {[%emt 0:00:00]} 90. Bb6 {[%emt 0:00:07]} Kb8 {[%emt 0:00:00]} 91. Qc7+ {[%emt 0:00:08]} 1-0

[Event "NOR-ch Various 2019"]
[Site "Larvik"]
[Date "2019.07.07"]
[Round "2.24"]
[White "Strand, Vetle Bjorge"]
[Black "Myagmarsuren, Evsuld"]
[Result "0-1"]
[ECO "D52"]
[WhiteElo "1765"]
[BlackElo "1289"]
[Annotator "NA"]
[PlyCount "120"]
[EventDate "2019.07.06"]
[EventType "swiss"]
[EventCountry "NOR"]
[SourceTitle "playchess.com"]
[Source "ChessBase"]
[SourceQuality "1"]
[TimeControl "40/5400+30:1800+30"]

1. d4 {[%emt 0:00:00]} d5 {[%emt 0:00:00]} 2. c4 {[%emt 0:00:00]} c6 {[%emt 0:00:02]} 3. Nc3 {[%emt 0:00:00]} Nf6 {[%emt 0:00:11]} 4. Bg5 {[%emt 0:00:01]} e6 {[%emt 0:00:13]} 5. e3 {[%emt 0:00:13]} Nbd7 {[%emt 0:00:13]} 6. Nf3 {[%emt 0:00:08]} Qa5 {[%emt 0:00:31]} 7. a3 {[%emt 0:00:56]} Ne4 {[%emt 0:00:51]} 8. Qc1 {[%emt 0:01:43]} dxc4 {[%emt 0:00:32]} 9. Bf4 {[%emt 0:01:08]} Nb6 {[%emt 0:02:18]} 10. Bc7 {[%emt 0:11:13]} Kd7 {[%emt 0:12:39]} 11. Bxb6 {[%emt 0:01:04]} axb6 {[%emt 0:00:20]} 12. Ne5+ {[%emt 0:00:29]} Kc7 {[%emt 0:04:10]} 13. Nxc4 {[%emt 0:04:04]} Qf5 {[%emt 0:00:14]} 14. Nxe4 {[%emt 0:03:33]} Qxe4 {[%emt 0:00:12]} 15. Ne5 {[%emt 0:04:57]} f6 {[%emt 0:04:14]} 16. Nd3 {[%emt 0:08:13]} Bd6 {[%emt 0:03:20]} 17. Qc3 {[%emt 0:09:22]} f5 {[%emt 0:04:29]} 18. Kd2 {[%emt 0:17:00]} f4 {[%emt 0:03:19]} 19. Re1 {[%emt 0:02:55]} Ra4 {[%emt 0:14:14]} 20. b4 {[%emt 0:09:16]} Bd7 {[%emt 0:04:17]} 21. Nb2 {[%emt 0:02:07]} Ra7 {[%emt 0:01:23]} 22. Nc4 {[%emt 0:04:55]} Rha8 {[%emt 0:03:00]} 23. Ra1 {[%emt 0:03:11]} Ra4 {[%emt 0:06:47]} 24. Nxd6 {[%emt 0:01:30]} Kxd6 {[%emt 0:00:23]} 25. Rg1 {[%emt 0:01:31]} Rc8 {[%emt 0:04:35]} 26. Bd3 {[%emt 0:00:38]} fxe3+ {[%emt 0:00:11]} 27. fxe3 {[%emt 0:00:09]} Qh4 {[%emt 0:00:35]} 28. h3 {[%emt 0:00:41]} c5 {[%emt 0:00:33]} 29. dxc5+ {[%emt 0:02:12]} bxc5 {[%emt 0:00:12]} 30. bxc5+ {[%emt 0:01:26]} Rxc5 {[%emt 0:00:56]} 31. Qb3 {[%emt 0:06:42]} Qf2+ {[%emt 0:00:14]} 32. Be2 {[%emt 0:00:09]} Rd5+ {[%emt 0:00:30]} 33. Kc3 {[%emt 0:03:21]} Qxe3+ {[%emt 0:01:11]} 34. Kb2 {[%emt 0:01:34]} Qxe2+ {[%emt 0:01:53]} 35. Qc2 {[%emt 0:00:05]} Rb5+ {[%emt 0:01:28]} 36. Kc1 {[%emt 0:00:32]} Rc4 {[%emt 0:01:40]} 37. Rd1+ {[%emt 0:00:17]} Ke7 {[%emt 0:00:23]} 38. Ra2 {[%emt 0:01:02]} Rbc5 {[%emt 0:00:59]} 39. Rd2 {[%emt 0:00:34]} Rxc2+ {[%emt 0:00:32]} 40. Raxc2 {[%emt 0:00:05]} Rxc2+ {[%emt 0:00:22]} 41. Rxc2 {[%emt 0:30:04]} Qe1+ {[%emt 0:30:26]} 42. Kb2 {[%emt 0:00:06]} Ba4 {[%emt 0:00:17]} 43. Rc7+ {[%emt 0:01:05]} Kd6 {[%emt 0:00:02]} 44. Rxb7 {[%emt 0:00:49]} Qd2+ {[%emt 0:00:10]} 45. Ka1 {[%emt 0:00:02]} Qc1+ {[%emt 0:00:22]} 46. Ka2 {[%emt 0:00:13]} Kc6 {[%emt 0:00:34]} 47. Rb8 {[%emt 0:00:23]} Qc2+ {[%emt 0:00:16]} 48. Ka1 {[%emt 0:00:44]} Bb3 {[%emt 0:00:09]} 49. Rc8+ {[%emt 0:00:13]} Kb5 {[%emt 0:00:13]} 50. Rxc2 {[%emt 0:00:08]} Bxc2 {[%emt 0:00:08]} 51. Kb2 {[%emt 0:00:01]} Be4 {[%emt 0:00:12]} 52. g3 {[%emt 0:00:07]} g5 {[%emt 0:00:33]} 53. Kc3 {[%emt 0:00:08]} h5 {[%emt 0:00:19]} 54. Kd4 {[%emt 0:00:21]} Bf5 {[%emt 0:00:24]} 55. Ke5 {[%emt 0:00:49]} Bxh3 {[%emt 0:00:12]} 56. Kf6 {[%emt 0:00:06]} h4 {[%emt 0:00:53]} 57. gxh4 {[%emt 0:00:07]} g4 {[%emt 0:00:37]} 58. h5 {[%emt 0:00:25]} g3 {[%emt 0:00:06]} 59. h6 {[%emt 0:00:04]} g2 {[%emt 0:00:09]} 60. h7 {[%emt 0:00:04]} g1=Q {[%emt 0:00:12]} 0-1

[Event "NOR-ch Various 2019"]
[Site "Larvik"]
[Date "2019.07.07"]
[Round "2.25"]
[White "Aasen, Alexander"]
[Black "Olsen, William Alexander"]
[Result "0-1"]
[ECO "E16"]
[WhiteElo "1287"]
[BlackElo "1764"]
[Annotator "NA"]
[PlyCount "90"]
[EventDate "2019.07.06"]
[EventType "swiss"]
[EventCountry "NOR"]
[SourceTitle "playchess.com"]
[Source "ChessBase"]
[SourceQuality "1"]
[TimeControl "40/5400+30:1800+30"]

1. d4 {[%emt 0:00:00]} Nf6 {[%emt 0:00:00]} 2. Nf3 {[%emt 0:00:00]} e6 {[%emt 0:00:00]} 3. c4 {[%emt 0:00:00]} b6 {[%emt 0:00:04]} 4. g3 {[%emt 0:00:03]} Bb7 {[%emt 0:00:45]} 5. Bg2 {[%emt 0:00:13]} Bb4+ {[%emt 0:00:50]} 6. Bd2 {[%emt 0:00:19]} Bxd2+ {[%emt 0:00:55]} 7. Nbxd2 {[%emt 0:00:23]} O-O {[%emt 0:00:08]} 8. O-O {[%emt 0:00:13]} d6 {[%emt 0:00:32]} 9. e3 {[%emt 0:02:21]} Nbd7 {[%emt 0:00:30]} 10. Rc1 {[%emt 0:04:25]} Qe7 {[%emt 0:02:15]} 11. Qc2 {[%emt 0:03:25]} e5 {[%emt 0:05:08]} 12. d5 {[%emt 0:01:15]} Rac8 {[%emt 0:02:44]} 13. h3 {[%emt 0:05:39]} c6 {[%emt 0:01:30]} 14. dxc6 {[%emt 0:09:10]} Bxc6 {[%emt 0:00:26]} 15. Qd1 {[%emt 0:01:59]} Rfd8 {[%emt 0:04:09]} 16. Qe2 {[%emt 0:05:50]} Nc5 {[%emt 0:09:27]} 17. b4 {[%emt 0:01:31]} Nce4 {[%emt 0:00:24]} 18. Nxe4 {[%emt 0:05:16]} Bxe4 {[%emt 0:02:07]} 19. Nd2 {[%emt 0:02:15]} Bxg2 {[%emt 0:01:02]} 20. Kxg2 {[%emt 0:00:17]} d5 {[%emt 0:00:22]} 21. a3 {[%emt 0:02:10]} Qb7 {[%emt 0:09:05]} 22. Kh2 {[%emt 0:00:53]} Qa6 {[%emt 0:00:46]} 23. b5 {[%emt 0:11:50]} Qxa3 {[%emt 0:00:24]} 24. Ra1 {[%emt 0:00:50]} Qe7 {[%emt 0:00:45]} 25. Ra2 {[%emt 0:02:20]} dxc4 {[%emt 0:02:19]} 26. Nxc4 {[%emt 0:00:25]} Qe6 {[%emt 0:00:20]} 27. Rc2 {[%emt 0:01:24]} Rc5 {[%emt 0:01:10]} 28. Nb2 {[%emt 0:01:52]} Rxc2 {[%emt 0:01:10]} 29. Qxc2 {[%emt 0:00:20]} Rc8 {[%emt 0:00:22]} 30. Qe2 {[%emt 0:02:30]} Ne4 {[%emt 0:00:41]} 31. Qd3 {[%emt 0:07:27]} Nc5 {[%emt 0:01:31]} 32. Qd2 {[%emt 0:00:23]} Qb3 {[%emt 0:01:14]} 33. Rd1 {[%emt 0:00:32]} h6 {[%emt 0:00:21]} 34. Qe2 {[%emt 0:01:59]} Ne4 {[%emt 0:00:43]} 35. Qg4 {[%emt 0:05:47]} Re8 {[%emt 0:01:18]} 36. Qxe4 {[%emt 0:03:42]} Qxb2 {[%emt 0:00:12]} 37. Kg2 {[%emt 0:00:57]} Qxb5 {[%emt 0:00:21]} 38. Rd5 {[%emt 0:01:36]} Qc6 {[%emt 0:00:10]} 39. f3 {[%emt 0:05:01]} Qe6 {[%emt 0:01:33]} 40. Qd3 {[%emt 0:02:29]} e4 {[%emt 0:00:48]} 41. Qd1 {[%emt 0:33:04]} exf3+ {[%emt 0:30:13]} 42. Qxf3 {[%emt 0:00:12]} Qxe3 {[%emt 0:00:31]} 43. Qf1 {[%emt 0:00:17]} Qe4+ {[%emt 0:00:12]} 44. Qf3 {[%emt 0:00:08]} Qxf3+ {[%emt 0:00:16]} 45. Kxf3 {[%emt 0:00:11]} Re7 {[%emt 0:00:06]} 0-1

[Event "NOR-ch Various 2019"]
[Site "Larvik"]
[Date "2019.07.07"]
[Round "2.26"]
[White "Unneland, Mathias"]
[Black "Sekkingstad, Thomas"]
[Result "0-1"]
[ECO "D19"]
[WhiteElo "2008"]
[BlackElo "1718"]
[Annotator "NA"]
[PlyCount "62"]
[EventDate "2019.07.06"]
[EventType "swiss"]
[EventCountry "NOR"]
[SourceTitle "playchess.com"]
[Source "ChessBase"]
[SourceQuality "1"]
[TimeControl "40/5400+30:1800+30"]

1. d4 {[%emt 0:00:00]} d5 {[%emt 0:00:00]} 2. c4 {[%emt 0:00:00]} c6 {[%emt 0:00:00]} 3. Nf3 {[%emt 0:00:00]} Nf6 {[%emt 0:00:15]} 4. Nc3 {[%emt 0:00:00]} dxc4 {[%emt 0:00:31]} 5. a4 {[%emt 0:00:00]} Bf5 {[%emt 0:00:45]} 6. e3 {[%emt 0:00:05]} e6 {[%emt 0:00:25]} 7. Bxc4 {[%emt 0:00:07]} Nbd7 {[%emt 0:00:12]} 8. Qe2 {[%emt 0:00:27]} Bb4 {[%emt 0:01:21]} 9. O-O {[%emt 0:00:15]} O-O {[%emt 0:00:37]} 10. e4 {[%emt 0:02:43]} Bg6 {[%emt 0:01:05]} 11. Bd3 {[%emt 0:01:28]} Qc7 {[%emt 0:02:52]} 12. Bg5 {[%emt 0:04:55]} e5 {[%emt 0:09:16]} 13. Bxf6 {[%emt 0:23:49]} gxf6 {[%emt 0:01:21]} 14. dxe5 {[%emt 0:10:27]} fxe5 {[%emt 0:04:48]} 15. Bc2 {[%emt 0:13:07]} a5 {[%emt 0:04:07]} 16. Nd1 {[%emt 0:05:27]} Nf6 {[%emt 0:02:19]} 17. Ne3 {[%emt 0:02:03]} Nxe4 {[%emt 0:09:16]} 18. Ng4 {[%emt 0:02:54]} Nd2 {[%emt 0:03:55]} 19. Nxd2 {[%emt 0:05:10]} Bxc2 {[%emt 0:00:17]} 20. Nf6+ {[%emt 0:00:25]} Kg7 {[%emt 0:01:54]} 21. Nh5+ {[%emt 0:05:01]} Kh8 {[%emt 0:01:08]} 22. f4 {[%emt 0:04:49]} Bxd2 {[%emt 0:03:37]} 23. Qxd2 {[%emt 0:00:09]} Bg6 {[%emt 0:00:07]} 24. Nf6 {[%emt 0:06:38]} Kg7 {[%emt 0:02:26]} 25. fxe5 {[%emt 0:02:39]} Qxe5 {[%emt 0:00:52]} 26. Ng4 {[%emt 0:00:32]} Qc5+ {[%emt 0:00:51]} 27. Kh1 {[%emt 0:00:09]} f5 {[%emt 0:01:14]} 28. Rac1 {[%emt 0:00:22]} fxg4 {[%emt 0:00:26]} 29. Qd7+ {[%emt 0:00:42]} Kh8 {[%emt 0:00:38]} 30. Rfd1 {[%emt 0:00:56]} Qf2 {[%emt 0:00:50]} 31. Qxg4 {[%emt 0:01:54]} Rae8 {[%emt 0:01:27]} 0-1

[Event "NOR-ch Various 2019"]
[Site "Larvik"]
[Date "2019.07.07"]
[Round "2.27"]
[White "Grave, Jacob Templen"]
[Black "Fuglestein, Sander"]
[Result "1/2-1/2"]
[ECO "D35"]
[WhiteElo "1800"]
[BlackElo "1997"]
[Annotator "NA"]
[PlyCount "33"]
[EventDate "2019.07.06"]
[EventType "swiss"]
[EventCountry "NOR"]
[SourceTitle "playchess.com"]
[Source "ChessBase"]
[SourceQuality "1"]
[TimeControl "40/5400+30:1800+30"]

1. d4 {[%emt 0:00:00]} Nf6 {[%emt 0:00:00]} 2. c4 {[%emt 0:00:00]} e6 {[%emt 0:00:03]} 3. Nf3 {[%emt 0:00:24]} d5 {[%emt 0:00:21]} 4. Nc3 {[%emt 0:00:08]} Be7 {[%emt 0:00:17]} 5. cxd5 {[%emt 0:03:00]} exd5 {[%emt 0:00:24]} 6. Bg5 {[%emt 0:00:07]} O-O {[%emt 0:00:16]} 7. e3 {[%emt 0:00:04]} Nbd7 {[%emt 0:00:20]} 8. Bd3 {[%emt 0:00:28]} Re8 {[%emt 0:00:08]} 9. O-O {[%emt 0:00:40]} Nf8 {[%emt 0:00:18]} 10. Qc2 {[%emt 0:02:59]} g6 {[%emt 0:05:09]} 11. Ne5 {[%emt 0:05:04]} Ne6 {[%emt 0:03:15]} 12. Bh4 {[%emt 0:02:02]} Ng7 {[%emt 0:03:36]} 13. Qb3 {[%emt 0:06:27]} c6 {[%emt 0:04:16]} 14. f3 {[%emt 0:06:57]} Nd7 {[%emt 0:13:42]} 15. Bg3 {[%emt 0:15:02]} Nxe5 {[%emt 0:06:02]} 16. Bxe5 {[%emt 0:01:10]} Bf6 {[%emt 0:13:16]} 17. f4 {[%emt 0:16:09]} 1/2-1/2

[Event "NOR-ch Various 2019"]
[Site "Larvik"]
[Date "2019.07.07"]
[Round "2.28"]
[White "Andersen, Lars Even"]
[Black "Fossan, Aleksander"]
[Result "1-0"]
[ECO "A37"]
[WhiteElo "2314"]
[BlackElo "2155"]
[Annotator "NA"]
[PlyCount "43"]
[EventDate "2019.07.06"]
[EventType "swiss"]
[EventCountry "NOR"]
[SourceTitle "playchess.com"]
[Source "ChessBase"]
[SourceQuality "1"]
[TimeControl "40/5400+30:1800+30"]

1. Nf3 {[%emt 0:08:06]} c5 {[%emt 0:00:00]} 2. g3 {[%emt 0:01:49]} g6 {[%emt 0:00:55]} 3. Bg2 {[%emt 0:00:50]} Bg7 {[%emt 0:00:20]} 4. c4 {[%emt 0:02:15]} Nc6 {[%emt 0:00:20]} 5. O-O {[%emt 0:01:12]} d6 {[%emt 0:01:17]} 6. Nc3 {[%emt 0:01:03]} e5 {[%emt 0:00:32]} 7. Ne1 {[%emt 0:07:19]} Be6 {[%emt 0:00:34]} 8. Nd5 {[%emt 0:02:57]} Nge7 {[%emt 0:04:27]} 9. Nc2 {[%emt 0:03:43]} Bxd5 {[%emt 0:03:49]} 10. cxd5 {[%emt 0:00:09]} Nd4 {[%emt 0:00:05]} 11. b4 {[%emt 0:08:58]} cxb4 {[%emt 0:22:24]} 12. Nxd4 {[%emt 0:07:04]} exd4 {[%emt 0:00:01]} 13. Qa4+ {[%emt 0:00:28]} Qd7 {[%emt 0:00:12]} 14. Qxb4 {[%emt 0:00:18]} d3 {[%emt 0:07:16]} 15. Bb2 {[%emt 0:02:32]} dxe2 {[%emt 0:02:11]} 16. Bxg7 {[%emt 0:01:20]} exf1=Q+ {[%emt 0:00:28]} 17. Bxf1 {[%emt 0:00:40]} O-O-O {[%emt 0:02:06]} 18. Bxh8 {[%emt 0:00:58]} Kb8 {[%emt 0:03:29]} 19. Bd4 {[%emt 0:01:30]} h5 {[%emt 0:01:41]} 20. Rc1 {[%emt 0:03:22]} h4 {[%emt 0:00:27]} 21. Bb5 {[%emt 0:01:28]} Qf5 {[%emt 0:00:46]} 22. Bxa7+ {[%emt 0:00:22]} 1-0

[Event "NOR-ch Various 2019"]
[Site "Larvik"]
[Date "2019.07.07"]
[Round "2.29"]
[White "Hagesather, Ellen"]
[Black "Hobber, Anders"]
[Result "0-1"]
[ECO "A07"]
[WhiteElo "2193"]
[BlackElo "2294"]
[Annotator "NA"]
[PlyCount "128"]
[EventDate "2019.07.06"]
[EventType "swiss"]
[EventCountry "NOR"]
[SourceTitle "playchess.com"]
[Source "ChessBase"]
[SourceQuality "1"]
[TimeControl "40/5400+30:1800+30"]

1. Nf3 {[%emt 0:00:00]} d5 {[%emt 0:00:02]} 2. g3 {[%emt 0:00:00]} c6 {[%emt 0:00:35]} 3. Bg2 {[%emt 0:00:07]} Bf5 {[%emt 0:00:31]} 4. b3 {[%emt 0:01:24]} Nf6 {[%emt 0:01:54]} 5. Bb2 {[%emt 0:00:20]} e6 {[%emt 0:04:22]} 6. Ne5 {[%emt 0:05:14]} Be7 {[%emt 0:00:38]} 7. d3 {[%emt 0:00:25]} O-O {[%emt 0:06:35]} 8. Nd2 {[%emt 0:01:23]} Nbd7 {[%emt 0:02:47]} 9. Nxd7 {[%emt 0:03:26]} Nxd7 {[%emt 0:00:31]} 10. e4 {[%emt 0:00:20]} Bg6 {[%emt 0:02:46]} 11. Qe2 {[%emt 0:02:53]} Bf6 {[%emt 0:17:50]} 12. e5 {[%emt 0:00:21]} Be7 {[%emt 0:00:15]} 13. O-O {[%emt 0:00:27]} Qb6 {[%emt 0:06:22]} 14. Bh3 {[%emt 0:07:55]} Bc5 {[%emt 0:09:57]} 15. Nf3 {[%emt 0:06:23]} Bh5 {[%emt 0:02:39]} 16. g4 {[%emt 0:00:39]} Bg6 {[%emt 0:00:10]} 17. Kh1 {[%emt 0:07:03]} Rae8 {[%emt 0:07:06]} 18. Nh4 {[%emt 0:14:27]} Qd8 {[%emt 0:10:58]} 19. Ng2 {[%emt 0:03:42]} f6 {[%emt 0:06:35]} 20. exf6 {[%emt 0:00:17]} Nxf6 {[%emt 0:00:20]} 21. f4 {[%emt 0:01:49]} Nd7 {[%emt 0:01:29]} 22. Qd2 {[%emt 0:03:30]} Bd6 {[%emt 0:03:03]} 23. Rae1 {[%emt 0:04:06]} e5 {[%emt 0:05:26]} 24. f5 {[%emt 0:00:50]} Bf7 {[%emt 0:00:01]} 25. c4 {[%emt 0:06:39]} Nc5 {[%emt 0:02:01]} 26. d4 {[%emt 0:04:16]} Ne4 {[%emt 0:00:29]} 27. Rxe4 {[%emt 0:01:19]} dxe4 {[%emt 0:00:02]} 28. dxe5 {[%emt 0:00:09]} Bc7 {[%emt 0:02:58]} 29. Qe2 {[%emt 0:07:39]} Bxe5 {[%emt 0:02:52]} 30. Ba3 {[%emt 0:00:50]} Qd3 {[%emt 0:01:05]} 31. Qxd3 {[%emt 0:00:07]} exd3 {[%emt 0:00:03]} 32. Rd1 {[%emt 0:02:00]} Rd8 {[%emt 0:00:27]} 33. Bxf8 {[%emt 0:00:10]} Kxf8 {[%emt 0:00:03]} 34. Ne1 {[%emt 0:00:23]} d2 {[%emt 0:00:16]} 35. Nf3 {[%emt 0:00:06]} Bf4 {[%emt 0:00:57]} 36. Bf1 {[%emt 0:01:10]} g6 {[%emt 0:00:48]} 37. Kg2 {[%emt 0:01:56]} gxf5 {[%emt 0:00:23]} 38. gxf5 {[%emt 0:00:07]} Ke7 {[%emt 0:00:50]} 39. Kh3 {[%emt 0:07:05]} Bh5 {[%emt 0:01:02]} 40. Be2 {[%emt 0:00:15]} Kf6 {[%emt 0:00:42]} 41. Kh4 {[%emt 0:30:31]} Re8 {[%emt 0:08:16]} 42. Kxh5 {[%emt 0:00:00]} Rxe2 {[%emt 0:00:06]} 43. Kg4 {[%emt 0:00:00]} Be3 {[%emt 0:01:04]} 44. h4 {[%emt 0:00:00]} h5+ {[%emt 0:01:53]} 45. Kxh5 {[%emt 0:00:00]} Kxf5 {[%emt 0:00:07]} 46. Rf1 {[%emt 0:00:00]} Ke4 {[%emt 0:02:43]} 47. Nxd2+ {[%emt 0:00:00]} Rxd2 {[%emt 0:00:39]} 48. Rf7 {[%emt 0:00:00]} Rxa2 {[%emt 0:00:34]} 49. Rxb7 {[%emt 0:00:00]} Kd3 {[%emt 0:01:56]} 50. Kg6 {[%emt 0:00:00]} Kc3 {[%emt 0:00:54]} 51. h5 {[%emt 0:00:00]} Rb2 {[%emt 0:01:53]} 52. c5 {[%emt 0:00:00]} Bxc5 {[%emt 0:01:59]} 53. h6 {[%emt 0:00:00]} Bd4 {[%emt 0:02:08]} 54. h7 {[%emt 0:00:00]} c5 {[%emt 0:06:16]} 55. Rxa7 {[%emt 0:03:22]} Kxb3 {[%emt 0:00:38]} 56. Kf5 {[%emt 0:00:48]} Rh2 {[%emt 0:00:38]} 57. Ke4 {[%emt 0:00:12]} Kc4 {[%emt 0:00:35]} 58. Ra4+ {[%emt 0:00:52]} Kb5 {[%emt 0:00:09]} 59. Ra7 {[%emt 0:00:05]} Bh8 {[%emt 0:01:06]} 60. Rb7+ {[%emt 0:00:15]} Kc4 {[%emt 0:00:19]} 61. Rc7 {[%emt 0:00:27]} Rh4+ {[%emt 0:00:13]} 62. Kf5 {[%emt 0:00:22]} Bd4 {[%emt 0:00:11]} 63. Kg5 {[%emt 0:00:16]} Rh1 {[%emt 0:00:23]} 64. Kf4 {[%emt 0:00:11]} Kd3 {[%emt 0:00:13]} 0-1

[Event "NOR-ch Various 2019"]
[Site "Larvik"]
[Date "2019.07.07"]
[Round "2.30"]
[White "Gulbrandsen, Tor"]
[Black "Lund, Gunnar"]
[Result "1/2-1/2"]
[ECO "A21"]
[WhiteElo "2120"]
[BlackElo "2285"]
[Annotator "NA"]
[PlyCount "66"]
[EventDate "2019.07.06"]
[EventType "swiss"]
[EventCountry "NOR"]
[SourceTitle "playchess.com"]
[Source "ChessBase"]
[SourceQuality "1"]
[TimeControl "40/5400+30:1800+30"]

1. c4 {[%emt 0:07:42]} e5 {[%emt 0:02:52]} 2. g3 {[%emt 0:00:59]} d6 {[%emt 0:01:33]} 3. Bg2 {[%emt 0:00:15]} f5 {[%emt 0:00:10]} 4. Nf3 {[%emt 0:01:31]} Nf6 {[%emt 0:00:16]} 5. Nc3 {[%emt 0:01:05]} Be7 {[%emt 0:01:25]} 6. d3 {[%emt 0:01:05]} O-O {[%emt 0:00:11]} 7. O-O {[%emt 0:00:43]} Qe8 {[%emt 0:01:18]} 8. Bd2 {[%emt 0:08:37]} Qh5 {[%emt 0:01:55]} 9. Nd5 {[%emt 0:03:23]} Bd8 {[%emt 0:06:23]} 10. Nxf6+ {[%emt 0:04:48]} Bxf6 {[%emt 0:00:46]} 11. Bc3 {[%emt 0:00:52]} Nc6 {[%emt 0:04:28]} 12. b4 {[%emt 0:04:46]} f4 {[%emt 0:02:58]} 13. b5 {[%emt 0:05:37]} Ne7 {[%emt 0:01:12]} 14. Nd2 {[%emt 0:01:57]} Bh3 {[%emt 0:02:13]} 15. e3 {[%emt 0:08:55]} Qh6 {[%emt 0:09:49]} 16. Bxh3 {[%emt 0:07:20]} Qxh3 {[%emt 0:00:24]} 17. Qe2 {[%emt 0:08:37]} Ng6 {[%emt 0:14:48]} 18. Rac1 {[%emt 0:05:33]} Rae8 {[%emt 0:05:42]} 19. Rfe1 {[%emt 0:07:15]} Qd7 {[%emt 0:10:49]} 20. Qf3 {[%emt 0:03:50]} fxe3 {[%emt 0:07:55]} 21. Qd5+ {[%emt 0:00:41]} Kh8 {[%emt 0:00:06]} 22. fxe3 {[%emt 0:00:29]} c6 {[%emt 0:00:03]} 23. bxc6 {[%emt 0:00:52]} bxc6 {[%emt 0:00:02]} 24. Qg2 {[%emt 0:00:49]} d5 {[%emt 0:00:45]} 25. cxd5 {[%emt 0:00:49]} cxd5 {[%emt 0:00:03]} 26. Bb4 {[%emt 0:01:27]} Be7 {[%emt 0:00:23]} 27. Bxe7 {[%emt 0:01:12]} Nxe7 {[%emt 0:00:02]} 28. Rf1 {[%emt 0:01:52]} Qb5 {[%emt 0:03:31]} 29. Rxf8+ {[%emt 0:01:16]} Rxf8 {[%emt 0:00:05]} 30. Rf1 {[%emt 0:01:16]} Rc8 {[%emt 0:01:36]} 31. Qh3 {[%emt 0:02:24]} Rd8 {[%emt 0:01:34]} 32. Qh4 {[%emt 0:03:08]} Qe8 {[%emt 0:01:43]} 33. Nf3 {[%emt 0:02:43]} Ng6 {[%emt 0:00:26]} 1/2-1/2